bitfinex/quotes_ETHUSD_20250731
["timestamp","ask_amount","ask_price","bid_price","bid_amount"]
[1753951399143,1.16534796,3874.9,3874.8,0.4604]
[1753951400275,1.16534796,3874.9,3874.8,0.894]
[1753951402086,1.1653354,3874.9,3874.8,0.894]
[1753951403634,0.6153354,3874.9,3874.8,3.84267836]
[1753951403905,0.2442731,3874.9,3874.8,12.14831801]
[1753951404104,0.2442731,3874.9,3874.8,8.30607836]
[1753951405305,0.24404231,3874.9,3874.8,8.30607836]
[1753951405610,3.002,3875.7,3874.8,8.30607836]
[1753951405611,0.002,3875.7,3875.6,2.58024563]
[1753951405769,0.002,3875.7,3875.6,8.32274563]
[1753951411481,0.002,3875.7,3875.6,6.62824563]
[1753951411691,0.1308,3875.7,3875.6,4.048]
[1753951411898,0.6808,3875.7,3875.6,4.048]
[1753951412105,0.6808,3875.7,3875.6,6.62824563]
[1753951412274,0.6808,3875.7,3875.6,7.08764563]
[1753951412471,0.6808,3875.7,3875.6,4.048]
[1753951413178,0.6808,3875.7,3875.6,6.62824563]
[1753951413392,0.6808,3875.7,3875.6,7.11634563]
[1753951414111,0.6808,3875.7,3875.6,4.5361]
[1753951416014,0.6808,3875.7,3875.6,7.11634563]
[1753951416172,0.6808,3875.7,3875.6,7.55774563]
[1753951416370,0.6808,3875.7,3875.6,8.35924563]
[1753951416906,0.002,3875.7,3875.6,8.35924563]
[1753951417204,0.002,3875.7,3875.6,8.48804563]
[1753951431199,0.002,3875.7,3875.6,8.04664563]
[1753951432099,0.002,3875.7,3875.6,8.48804563]
[1753951435150,0.002,3875.7,3875.6,8.43804563]
[1753951437357,0.24393157,3875.7,3875.6,8.43804563]
[1753951438104,0.002,3875.7,3875.6,8.43804563]
[1753951439909,0.002,3875.7,3875.6,13.55672984]
[1753951443561,0.002,3875.7,3875.6,16.55672984]
[1753951445187,0.1688,3876.9,3875.6,16.55672984]
[1753951445188,0.1688,3876.9,3875.7,3.0]
[1753951445474,0.1688,3876.9,3876.8,2.70824696]
[1753951445475,0.04,3876.9,3876.8,2.70824696]
[1753951445763,0.28165253,3876.9,3876.8,7.06634696]
[1753951446129,0.28165253,3876.9,3876.8,7.86114696]
[1753951446534,0.28165253,3876.9,3876.8,8.29854696]
[1753951447824,0.28165253,3876.9,3876.8,13.41723117]
[1753951448785,0.28165253,3876.9,3876.8,8.29854696]
[1753951448930,0.04,3876.9,3876.8,8.29854696]
[1753951450044,0.04,3876.9,3876.8,7.40904696]
[1753951450229,0.04,3876.9,3876.8,6.61324696]
[1753951450970,0.04,3876.9,3876.8,7.06534696]
[1753951455234,0.04,3876.9,3876.8,7.50274696]
[1753951456268,0.04,3876.9,3876.8,4.0328]
[1753951456572,0.891,3876.9,3876.8,3.904]
[1753951458759,0.04,3876.9,3876.8,7.28494696]
[1753951459177,0.04,3876.9,3876.8,6.93554696]
[1753951462901,0.04,3876.9,3876.8,6.48344696]
[1753951463094,0.04,3876.9,3876.8,7.37294696]
[1753951464011,0.04,3876.9,3876.8,7.50174696]
[1753951464944,0.04,3876.9,3876.8,7.06434696]
[1753951471123,0.042,3876.9,3876.8,7.06434696]
[1753951472192,0.042,3876.9,3876.8,6.48144696]
[1753951472400,0.28372314,3876.9,3876.8,6.48144696]
[1753951472985,0.042,3876.9,3876.8,6.48144696]
[1753951473709,0.042,3876.9,3876.8,6.48244696]
[1753951474026,0.28384774,3876.9,3876.8,6.48244696]
[1753951474831,0.28384774,3876.9,3876.8,3.903]
[1753951475246,0.28384774,3876.9,3876.8,6.48244696]
[1753951476448,0.28384774,3876.9,3876.8,6.93454696]
[1753951481674,0.83384774,3876.9,3876.6,0.1288]
[1753951481818,0.55,3876.7,3876.6,0.1288]
[1753951482022,0.79184774,3876.7,3876.6,3.905]
[1753951482245,0.92064774,3876.7,3876.6,3.905]
[1753951482557,1.75064774,3876.7,3876.6,3.905]
[1753951483672,0.92064774,3876.7,3876.6,3.905]
[1753951483965,0.92064774,3876.7,3876.6,0.4521]
[1753951484171,0.92064774,3876.7,3876.6,4.3571]
[1753951484765,0.24184774,3876.7,3876.6,4.7898]
[1753951485064,0.24184774,3876.7,3876.6,7.36938004]
[1753951485263,0.24184774,3876.7,3876.6,13.28766425]
[1753951485451,0.24184774,3876.7,3876.6,8.16898004]
[1753951485625,0.24184774,3876.7,3876.6,7.38438004]
[1753951485828,0.24184774,3876.7,3876.6,6.49958004]
[1753951486569,0.24184774,3876.7,3876.6,6.95168004]
[1753951488855,0.24184774,3876.7,3876.6,7.38438004]
[1753951490257,0.24184774,3876.7,3876.6,6.95168004]
[1753951490457,0.24184774,3876.7,3876.6,7.38438004]
[1753951491556,0.24184774,3876.7,3876.6,8.15978004]
[1753951494482,0.042,3876.9,3876.8,2.57944696]
[1753951494682,0.28385599,3876.9,3876.8,6.49744696]
[1753951494895,0.28385599,3876.9,3876.8,7.38224696]
[1753951495261,0.28385599,3876.9,3876.8,7.51104696]
[1753951496082,0.002,3877.3,3877.2,3.38068085]
[1753951496282,0.002,3877.3,3877.2,7.87748085]
[1753951496485,0.002,3877.3,3877.2,8.76228085]
[1753951498137,0.83,3878.2,3877.2,8.76228085]
[1753951498138,0.8232,3879.6,3877.3,0.7741]
[1753951498302,0.1288,3878.7,3877.4,4.8128]
[1753951498631,0.83,3878.6,3878.4,2.57837002]
[1753951498796,1.5088,3878.5,3878.4,2.57837002]
[1753951498992,1.5088,3878.5,3878.4,6.52037002]
[1753951499535,1.1306,3878.5,3878.4,3.942]
[1753951500217,1.1306,3878.5,3878.0,2.70744393]
[1753951500548,0.83,3878.4,3878.1,6.51953123]
[1753951500747,0.3782,3878.4,3878.1,3.941]
[1753951500895,0.4518,3878.3,3878.1,6.5195765]
[1753951501230,0.4518,3878.3,3878.1,3.941]
[1753951501464,0.55,3878.0,3877.5,0.4521]
[1753951501766,1.0018,3878.0,3877.9,2.57871528]
[1753951501961,0.55,3878.0,3877.9,6.51871528]
[1753951502556,0.1288,3878.1,3878.0,2.57864878]
[1753951502718,0.55,3878.2,3878.1,2.57855494]
[1753951502918,0.55,3878.2,3878.1,3.94]
[1753951503752,0.55,3878.2,3878.0,6.51863348]
[1753951503960,0.55,3878.2,3878.1,2.57858229]
[1753951504830,0.55,3878.2,3878.0,6.9781338]
[1753951505046,0.4703,3878.1,3877.3,1.2336]
[1753951505327,0.4703,3878.1,3877.7,3.94]
[1753951505328,1.4597,3878.0,3877.7,3.94]
[1753951505528,2.3082,3878.0,3877.7,3.94]
[1753951507319,1.93,3878.0,3877.7,3.94]
[1753951508058,0.55,3877.8,3877.5,0.1288]
[1753951508360,0.24106386,3877.7,3877.6,3.938]
[1753951508583,0.24106386,3877.7,3877.6,6.51691479]
[1753951509068,0.24106386,3877.7,3877.6,3.938]
[1753951510555,0.24106386,3877.7,3877.6,6.97641479]
[1753951510761,0.24106386,3877.7,3877.6,7.43371479]
[1753951512247,0.24106386,3877.7,3877.6,4.8548]
[1753951513774,0.24106386,3877.7,3877.6,7.43371479]
[1753951514265,0.24106386,3877.7,3877.6,7.43471479]
[1753951514266,0.24112368,3877.7,3877.6,7.43471479]
[1753951515038,0.24112368,3877.7,3877.6,4.8558]
[1753951515240,0.24112368,3877.7,3877.6,4.3985]
[1753951515482,0.24112368,3877.7,3877.6,3.939]
[1753951515632,1.26142368,3877.7,3877.6,3.939]
[1753951515837,2.54132368,3877.7,3877.6,3.939]
[1753951516031,2.16312368,3877.7,3877.6,3.939]
[1753951516236,1.69282368,3877.7,3877.6,3.939]
[1753951517226,1.69293577,3877.7,3877.6,3.939]
[1753951518460,0.92003577,3877.7,3877.6,4.3985]
[1753951520408,0.92003577,3877.7,3877.6,3.939]
[1753951523558,0.92003577,3877.7,3877.6,4.3985]
[1753951525055,0.92003577,3877.7,3877.6,4.8558]
[1753951525371,0.92003577,3877.7,3877.6,4.3985]
[1753951526452,0.92003577,3877.7,3877.6,4.8558]
[1753951527506,0.92003577,3877.7,3877.6,4.3985]
[1753951530465,0.92003577,3877.7,3877.6,4.8558]
[1753951531378,0.92003577,3877.7,3877.6,4.3985]
[1753951532502,0.92003577,3877.7,3877.6,6.97741479]
[1753951532706,0.24123577,3877.7,3877.6,7.43471479]
[1753951534810,0.1288,3878.0,3877.9,2.57871528]
[1753951535148,0.1288,3878.0,3877.9,7.76371528]
[1753951535309,0.1288,3878.0,3877.9,8.69891528]
[1753951535987,0.3706134,3878.0,3877.9,8.69891528]
[1753951536790,0.1288,3878.0,3877.9,8.69891528]
[1753951536983,20.0,3878.2,3878.0,2.57862459]
[1753951537202,20.0,3878.2,3878.1,5.201]
[1753951537381,20.0,3878.2,3878.1,5.6839]
[1753951538813,20.0,3878.2,3878.1,8.26248229]
[1753951539014,20.24182758,3878.2,3878.1,6.1362]
[1753951539384,20.0,3878.2,3878.1,6.1362]
[1753951539794,20.0,3878.2,3878.1,5.6839]
[1753951540403,20.24183887,3878.2,3878.1,5.6839]
[1753951542088,20.24183887,3878.2,3878.1,5.201]
[1753951542424,22.42553887,3878.2,3878.1,5.201]
[1753951543226,22.42542103,3878.2,3878.1,5.201]
[1753951543614,25.00393683,3878.2,3878.1,5.201]
[1753951543811,22.42542103,3878.2,3878.1,5.201]
[1753951544123,28.24566746,3878.2,3878.1,5.201]
[1753951546188,28.24567932,3878.2,3878.1,5.201]
[1753951547737,28.24567932,3878.2,3878.1,5.0331267]
[1753951548226,0.55,3877.7,3877.6,0.001]
[1753951548424,1.62492103,3877.7,3877.6,4.488]
[1753951548827,4.20376931,3877.7,3877.6,4.488]
[1753951549026,4.66236931,3877.7,3877.6,4.488]
[1753951549230,4.79116931,3877.7,3877.6,4.488]
[1753951550019,4.33256931,3877.7,3877.6,4.488]
[1753951554627,12.90985352,3877.7,3877.6,0.001]
[1753951554831,13.52971663,3877.7,3877.6,0.001]
[1753951555454,13.40091663,3877.7,3877.6,0.001]
[1753951558247,13.40070834,3877.7,3877.6,0.001]
[1753951559261,7.44522413,3877.7,3877.6,0.001]
[1753951560365,7.90382413,3877.7,3877.6,0.001]
[1753951561948,8.28202413,3877.7,3877.6,0.001]
[1753951562349,6.06202413,3877.7,3877.6,0.001]
[1753951562553,6.61183454,3877.7,3877.6,0.4839]
[1753951563058,7.83173454,3877.7,3877.6,0.001]
[1753951563560,7.37313454,3877.7,3877.6,0.001]
[1753951564866,7.84253454,3877.7,3877.6,0.001]
[1753951565367,7.97133454,3877.7,3877.6,0.001]
[1753951566068,7.97135394,3877.7,3877.6,0.001]
[1753951566772,7.50195394,3877.7,3877.6,0.4626]
[1753951567572,7.96455394,3877.7,3877.6,0.4626]
[1753951569133,4.62441731,3877.7,3877.6,0.001]
[1753951569362,6.49936931,3877.7,3877.6,0.9017]
[1753951570433,6.74067968,3877.7,3877.6,0.4626]
[1753951571050,6.74067968,3877.7,3877.6,0.001]
[1753951571235,6.74067968,3877.7,3877.6,0.4626]
[1753951573269,10.66667968,3877.7,3877.6,0.4626]
[1753951573476,10.66667968,3877.7,3877.6,0.9017]
[1753951573989,10.66567968,3877.7,3877.6,0.9017]
[1753951575205,10.66557735,3877.7,3877.6,0.4626]
[1753951575538,6.74057735,3877.7,3877.6,0.4626]
[1753951575740,10.66461974,3877.7,3877.6,0.4626]
[1753951576277,10.66461974,3877.7,3877.6,0.9017]
[1753951576484,10.66465767,3877.7,3877.6,0.9017]
[1753951577791,10.66365767,3877.7,3877.6,0.9017]
[1753951577999,10.66409698,3877.7,3877.6,0.9017]
[1753951578415,4.1622487,3877.7,3877.6,0.9017]
[1753951578562,4.16233577,3877.7,3877.6,0.9017]
[1753951578897,0.92058609,3877.7,3877.6,0.9017]
[1753951581191,0.79175516,3877.7,3877.6,0.9017]
[1753951582404,0.79175516,3877.7,3877.6,3.48061479]
[1753951582893,0.79175516,3877.7,3877.6,0.9017]
[1753951583277,0.79175516,3877.7,3877.6,0.4626]
[1753951583603,0.79175516,3877.7,3877.6,0.9017]
[1753951584820,0.79175516,3877.7,3877.6,0.4626]
[1753951586008,0.79175516,3877.7,3877.6,0.9017]
[1753951586982,0.79160471,3877.7,3877.6,0.9017]
[1753951588203,0.79160471,3877.7,3877.6,4.8227]
[1753951588800,0.79160471,3877.7,3877.6,0.9017]
[1753951589125,0.79160471,3877.7,3877.6,4.3836]
[1753951589328,0.79160471,3877.7,3877.6,0.4626]
[1753951589629,3.37045299,3877.7,3877.6,0.001]
[1753951589928,8.4891372,3877.7,3877.6,0.001]
[1753951590128,5.91028892,3877.7,3877.6,0.001]
[1753951590795,0.79160471,3877.7,3877.6,0.4626]
[1753951590992,0.92040471,3877.7,3877.6,0.4626]
[1753951594936,3.49925299,3877.7,3877.6,0.001]
[1753951595162,0.92040471,3877.7,3877.6,0.001]
[1753951595457,3.74093559,3877.7,3877.6,0.001]
[1753951596039,12.3111198,3877.7,3877.6,0.001]
[1753951596242,12.6893198,3877.7,3877.6,0.001]
[1753951596838,12.3111198,3877.7,3877.6,0.001]
[1753951597750,12.6218198,3877.7,3877.6,0.001]
[1753951597923,13.4515198,3877.7,3877.6,0.001]
[1753951598739,17.3695198,3877.7,3877.6,0.001]
[1753951598938,17.36965278,3877.7,3877.6,0.001]
[1753951600337,3.12911433,3877.3,3877.2,0.001]
[1753951600538,8.61832289,3877.3,3877.2,0.001]
[1753951600969,8.37659854,3877.3,3877.2,0.001]
[1753951601456,8.37659854,3877.3,3877.2,0.46]
[1753951601661,0.6788,3877.3,3877.2,0.9153]
[1753951601980,0.92052801,3877.3,3877.2,0.9153]
[1753951602154,0.6788,3877.3,3877.2,0.9153]
[1753951602725,0.92050821,3877.3,3877.2,0.9153]
[1753951604032,0.92051546,3877.3,3877.2,0.9153]
[1753951606361,0.37051546,3877.3,3877.2,3.49448085]
[1753951606527,0.24171546,3877.3,3877.2,7.41148085]
[1753951607158,0.24171546,3877.3,3877.2,4.8323]
[1753951607469,0.24171546,3877.3,3877.2,7.41148085]
[1753951609071,0.24171546,3877.3,3877.2,4.8323]
[1753951612081,0.24171546,3877.3,3877.2,7.41148085]
[1753951612735,0.24171546,3877.3,3877.2,4.8323]
[1753951615261,0.24171546,3877.3,3877.2,3.918]
[1753951615574,0.79171546,3877.3,3877.2,3.918]
[1753951615753,0.79171546,3877.3,3877.2,3.915]
[1753951616575,3.37082979,3877.3,3877.2,3.915]
[1753951617878,0.79171546,3877.3,3877.2,3.915]
[1753951618886,0.79188437,3877.3,3877.2,3.915]
[1753951620042,3.3709987,3877.3,3877.2,0.001]
[1753951620242,3.3709987,3877.3,3877.2,3.914]
[1753951620681,3.8224987,3877.3,3877.2,3.914]
[1753951620879,3.3709987,3877.3,3877.2,0.001]
[1753951621103,4.44261952,3877.3,3877.2,0.001]
[1753951621584,4.44262306,3877.3,3877.2,0.001]
[1753951622079,7.44262306,3877.3,3877.2,0.001]
[1753951622790,7.06442306,3877.3,3877.2,0.001]
[1753951623982,7.44257633,3877.3,3877.2,0.001]
[1753951624145,7.06437633,3877.3,3877.2,0.001]
[1753951624964,7.44257633,3877.3,3877.2,0.001]
[1753951627399,8.19457633,3877.3,3877.2,0.001]
[1753951627681,6.12918085,3877.2,3877.1,0.001]
[1753951627892,12.11354285,3877.2,3877.1,0.001]
[1753951628442,12.24234285,3877.2,3877.1,0.001]
[1753951630000,12.24209808,3877.2,3877.1,0.001]
[1753951630500,12.11329808,3877.2,3877.1,0.001]
[1753951631075,6.94708043,3876.9,3876.8,0.001]
[1753951631293,16.46128187,3876.9,3876.8,0.001]
[1753951631601,17.29788187,3876.9,3876.8,0.001]
[1753951637908,6.95154624,3876.2,3876.1,0.5267]
[1753951638127,11.10618584,3876.2,3876.1,0.5267]
[1753951639875,7.19318584,3876.2,3876.1,0.5267]
[1753951640077,10.28348584,3876.2,3876.1,0.9896]
[1753951640490,10.41228584,3876.2,3876.1,0.9896]
[1753951644942,0.9204396,3876.2,3876.1,0.9896]
[1753951645600,0.6788,3876.2,3876.1,0.9896]
[1753951645817,0.91993721,3876.2,3876.1,0.9896]
[1753951649497,0.24113721,3876.2,3876.1,1.7911]
[1753951649907,0.79113721,3876.2,3876.1,1.7911]
[1753951650431,0.79113721,3876.2,3876.1,0.9896]
[1753951653552,3.37098345,3876.2,3876.1,0.041]
[1753951653735,6.37098345,3876.2,3876.1,0.5271]
[1753951654108,6.37139847,3876.2,3876.1,0.5271]
[1753951656310,6.61307496,3876.2,3876.1,0.5271]
[1753951657038,6.61332736,3876.2,3876.1,0.5271]
[1753951659227,6.61332736,3876.2,3876.1,0.041]
[1753951659661,6.74212736,3876.2,3876.1,0.041]
[1753951660142,6.74234659,3876.2,3876.1,0.041]
[1753951660309,2.58004592,3875.9,3875.8,0.4861]
[1753951660510,3.13011249,3875.8,3875.7,0.001]
[1753951660710,3.37185388,3875.8,3875.7,0.001]
[1753951660909,3.61385295,3875.8,3875.7,0.001]
[1753951661240,3.37185388,3875.8,3875.7,0.4871]
[1753951661436,0.79174139,3875.8,3875.7,0.9453]
[1753951661842,3.37185388,3875.8,3875.7,0.9453]
[1753951662036,3.61385061,3875.8,3875.7,0.9453]
[1753951662859,1.03373812,3875.8,3875.7,0.9453]
[1753951663003,0.79198798,3875.8,3875.7,0.9453]
[1753951663204,1.03397646,3875.8,3875.7,0.9453]
[1753951663410,1.03397844,3875.8,3875.7,0.9453]
[1753951663843,0.79198573,3875.8,3875.7,0.9453]
[1753951664045,0.79198589,3875.8,3875.7,0.9453]
[1753951664240,0.24198589,3875.8,3875.7,1.7468]
[1753951664742,0.24196392,3875.8,3875.7,1.7468]
[1753951665133,0.1288,3875.9,3875.7,1.7468]
[1753951665448,0.1288,3875.9,3875.8,0.9443]
[1753951665944,0.3707581,3875.9,3875.8,0.9443]
[1753951668360,0.3707581,3875.9,3875.8,4.8653]
[1753951669560,0.3707581,3875.9,3875.8,4.8643]
[1753951669757,0.55,3875.8,3875.7,3.921]
[1753951669937,0.7919581,3875.8,3875.7,4.4071]
[1753951670134,0.7919581,3875.8,3875.7,0.001]
[1753951670442,0.7919581,3875.8,3875.7,4.4071]
[1753951671629,0.7919581,3875.8,3875.7,4.8653]
[1753951680580,0.79199579,3875.8,3875.7,4.8653]
[1753951682676,0.79199579,3875.8,3875.7,0.4871]
[1753951682840,0.79199579,3875.8,3875.7,4.4031]
[1753951683049,0.79199579,3875.8,3875.7,3.917]
[1753951683374,0.79199579,3875.8,3875.7,0.001]
[1753951683555,0.79199579,3875.8,3875.7,4.3736]
[1753951684078,0.7920351,3875.8,3875.7,4.3736]
[1753951684282,0.7920351,3875.8,3875.7,4.8197]
[1753951686146,0.7920351,3875.8,3875.7,4.3736]
[1753951686351,0.7920351,3875.8,3875.7,4.8197]
[1753951686984,0.7920351,3875.8,3875.7,4.3736]
[1753951687184,0.7920351,3875.8,3875.7,3.915]
[1753951687602,1.0340933,3875.8,3875.7,3.915]
[1753951688702,3.61420579,3875.8,3875.7,3.915]
[1753951689288,1.0340933,3875.8,3875.7,3.915]
[1753951690889,1.0340933,3875.8,3875.7,4.3716]
[1753951691585,3.61416131,3875.8,3875.7,3.915]
[1753951694203,4.07676131,3875.8,3875.7,3.915]
[1753951694798,3.61416131,3875.8,3875.7,3.915]
[1753951694994,1.03404882,3875.8,3875.7,0.001]
[1753951695298,1.03404882,3875.8,3875.7,0.4576]
[1753951696762,0.79202441,3875.8,3875.7,0.4576]
[1753951697095,1.0339966,3875.8,3875.7,0.4576]
[1753951698288,3.61410909,3875.8,3875.7,0.4576]
[1753951698474,1.0339966,3875.8,3875.7,0.4576]
[1753951699096,1.03397808,3875.8,3875.7,0.4576]
[1753951699299,1.03398409,3875.8,3875.7,0.4576]
[1753951699674,0.79202441,3875.8,3875.7,0.9037]
[1753951701100,0.24202441,3875.8,3875.7,3.48387906]
[1753951701397,0.1288,3875.9,3875.8,2.58011249]
[1753951701582,0.1308,3876.1,3875.9,2.58001048]
[1753951701789,0.24192154,3876.0,3875.9,2.58001048]
[1753951701995,0.24192154,3876.0,3875.9,3.48271048]
[1753951702161,0.24192154,3876.0,3875.9,4.26481048]
[1753951702368,0.24192154,3876.0,3875.9,4.39361048]
[1753951702566,0.002,3876.1,3876.0,2.57997936]
[1753951702870,0.24386227,3876.1,3876.0,3.48267936]
[1753951704807,0.24386227,3876.1,3876.0,7.39467936]
[1753951705417,0.002,3876.1,3876.0,7.39467936]
[1753951714911,0.002,3876.1,3876.0,4.8147]
[1753951715112,0.002,3876.1,3876.0,3.912]
[1753951715848,0.002,3876.1,3876.0,4.3958]
[1753951716621,0.002,3876.1,3876.0,3.912]
[1753951716810,0.552,3876.1,3875.7,0.001]
[1753951717125,3.13006733,3875.9,3875.8,3.911]
[1753951717622,4.11176733,3875.9,3875.8,3.911]
[1753951717993,4.3532075,3875.9,3875.8,3.911]
[1753951718322,4.35321928,3875.9,3875.8,3.911]
[1753951719027,1.77315195,3875.9,3875.8,3.911]
[1753951719213,1.39495195,3875.9,3875.8,3.911]
[1753951719926,0.92025195,3875.9,3875.8,3.911]
[1753951720697,0.92025195,3875.9,3875.8,4.3948]
[1753951720897,0.6788,3875.9,3875.8,4.3948]
[1753951721316,0.92029268,3875.9,3875.8,4.3948]
[1753951721731,0.6788,3875.9,3875.8,4.3948]
[1753951722636,0.92032669,3875.9,3875.8,4.3948]
[1753951724738,0.6788,3875.9,3875.8,4.3948]
[1753951725032,0.92038013,3875.9,3875.8,4.3948]
[1753951725438,0.37038013,3875.9,3875.8,7.73211249]
[1753951725652,0.1288,3875.9,3875.8,8.17271249]
[1753951725794,0.37038013,3875.9,3875.8,8.17271249]
[1753951725999,0.24160383,3876.0,3875.9,2.58004592]
[1753951726222,0.24160383,3876.0,3875.9,3.50444592]
[1753951726429,0.002,3876.1,3876.0,2.57997936]
[1753951726630,0.24362706,3876.1,3876.0,6.49097936]
[1753951726838,0.002,3876.1,3876.0,7.41537936]
[1753951727220,0.24362706,3876.1,3876.0,7.41537936]
[1753951728050,0.24362706,3876.1,3876.0,4.8354]
[1753951728215,0.24366417,3876.1,3876.0,7.41537936]
[1753951733948,0.24380233,3876.1,3876.0,4.8354]
[1753951742722,0.24380233,3876.1,3875.7,0.1298]
[1753951742723,0.55,3876.0,3875.7,0.1298]
[1753951742923,0.24180233,3875.9,3875.8,3.911]
[1753951743665,0.24180233,3875.9,3875.8,7.41191249]
[1753951744965,0.24199524,3875.9,3875.8,7.41191249]
[1753951745269,0.24200852,3875.9,3875.8,7.41191249]
[1753951749167,0.24200852,3875.9,3875.8,0.9208]
[1753951749375,0.24200852,3875.9,3875.8,3.50091249]
[1753951752479,0.002,3876.1,3875.9,2.57999367]
[1753951752781,0.24198154,3876.0,3875.9,3.50079367]
[1753951753477,0.002,3876.1,3876.0,2.57997936]
[1753951753683,0.24397117,3876.1,3876.0,3.50077936]
[1753951754049,0.24397117,3876.1,3876.0,4.29347936]
[1753951754447,0.24397117,3876.1,3876.0,4.42227936]
[1753951758378,0.002,3876.1,3876.0,4.42227936]
[1753951758950,0.002,3876.1,3876.0,3.19897936]
[1753951759375,0.002,3876.1,3876.0,3.62957936]
[1753951763502,0.002,3876.1,3876.0,0.1288]
[1753951763700,1.47973299,3876.1,3875.8,0.1288]
[1753951763996,0.66963299,3876.0,3875.8,0.1288]
[1753951764282,0.24193299,3875.9,3875.7,0.001]
[1753951764506,0.24197027,3875.8,3875.7,0.001]
[1753951764973,1.04787027,3875.8,3875.7,0.001]
[1753951765457,2.42287027,3875.8,3875.7,0.001]
[1753951769656,5.00298276,3875.8,3875.7,0.001]
[1753951771356,10.12166697,3875.8,3875.7,0.001]
[1753951772361,13.12157098,3875.8,3875.7,0.001]
[1753951772594,12.8796967,3875.8,3875.7,0.001]
[1753951772898,13.12156439,3875.8,3875.7,0.001]
[1753951775280,13.22497939,3875.8,3875.7,0.001]
[1753951777201,10.22481237,3875.8,3875.7,0.001]
[1753951783522,13.22481237,3875.8,3875.7,0.001]
[1753951784511,13.46636329,3875.8,3875.7,0.001]
[1753951786408,13.22481237,3875.8,3875.7,0.001]
[1753951787210,12.9831117,3875.8,3875.7,0.001]
[1753951788810,13.46623882,3875.8,3875.7,0.001]
[1753951789811,12.9831117,3875.8,3875.7,0.001]
[1753951790310,7.86442749,3875.8,3875.7,0.001]
[1753951790488,7.48622749,3875.8,3875.7,0.001]
[1753951790689,7.96947793,3875.8,3875.7,0.001]
[1753951791093,7.48622749,3875.8,3875.7,0.001]
[1753951791414,7.61444141,3875.8,3875.7,0.001]
[1753951792215,8.09778587,3875.8,3875.7,0.001]
[1753951793125,7.67008587,3875.8,3875.7,0.001]
[1753951796583,8.13808587,3875.8,3875.7,0.001]
[1753951798099,7.67008587,3875.8,3875.7,0.001]
[1753951799718,2.58017906,3875.7,3875.6,0.001]
[1753951799938,3.74232352,3875.7,3875.6,0.001]
[1753951800492,4.21822352,3875.7,3875.6,0.001]
[1753951800692,5.04412352,3875.7,3875.6,0.001]
[1753951801801,5.51212352,3875.7,3875.6,0.001]
[1753951802000,8.89032352,3875.7,3875.6,0.001]
[1753951802389,8.51212352,3875.7,3875.6,0.001]
[1753951802719,8.04412352,3875.7,3875.6,0.001]
[1753951803125,8.04447236,3875.7,3875.6,0.001]
[1753951803324,8.87947236,3875.7,3875.6,0.001]
[1753951803525,38.87947236,3875.7,3875.6,0.001]
[1753951803828,3.39167879,3875.4,3875.3,0.001]
[1753951804021,7.00417209,3875.4,3875.3,0.001]
[1753951804423,7.49617209,3875.4,3875.3,0.001]
[1753951805130,7.49617209,3875.4,3875.3,0.493]
[1753951807219,43.1648563,3875.4,3875.3,1e-08]
[1753951807419,43.9998563,3875.4,3875.3,1e-08]
[1753951810902,43.6216563,3875.4,3875.3,1e-08]
[1753951811101,43.75223144,3875.4,3875.3,1e-08]
[1753951811502,44.13043144,3875.4,3875.3,1e-08]
[1753951812116,44.13043144,3875.4,3874.9,0.001]
[1753951812117,3.91834516,3875.0,3874.9,0.001]
[1753951812310,12.52044036,3875.0,3874.9,0.001]
[1753951812527,12.52044036,3875.0,3874.8,0.001]
[1753951812528,6.13071176,3874.9,3874.8,0.001]
[1753951812733,6.3722761,3874.9,3874.8,0.001]
[1753951813134,5.58091157,3874.6,3874.5,0.443]
[1753951813342,5.95127591,3874.6,3874.5,0.443]
[1753951814241,6.70837591,3874.6,3874.5,0.443]
[1753951814739,7.25837591,3874.6,3874.5,0.443]
[1753951814903,7.25837591,3874.6,3874.4,0.001]
[1753951815101,2.82249943,3874.5,3874.4,0.001]
[1753951815333,2.82249943,3874.5,3874.4,0.493]
[1753951816844,12.25778364,3874.5,3874.4,1e-08]
[1753951817048,43.46857683,3874.5,3874.4,1e-08]
[1753951817240,44.28787677,3874.5,3874.4,1e-08]
[1753951817440,3.89797793,3873.9,3873.8,0.48300001]
[1753951817646,7.13949917,3873.9,3873.8,0.48300001]
[1753951817949,6.13144457,3873.8,3873.5,0.4648]
[1753951818145,6.50176581,3873.8,3873.5,0.4648]
[1753951819514,6.50176581,3873.8,3873.7,0.493]
[1753951819724,6.50176581,3873.8,3873.7,0.001]
[1753951820335,7.26836581,3873.8,3873.7,0.001]
[1753951821042,7.26836581,3873.8,3873.7,0.493]
[1753951822320,7.26816197,3873.8,3873.7,0.493]
[1753951822519,7.26816197,3873.8,3873.7,0.443]
[1753951822938,6.50156197,3873.8,3873.7,0.9078]
[1753951823332,6.50156063,3873.8,3873.7,0.4648]
[1753951824395,2.58171115,3873.4,3873.3,0.001]
[1753951824595,2.71051115,3873.4,3873.3,0.001]
[1753951825282,5.71051115,3873.4,3873.3,0.9578]
[1753951826987,6.26051115,3873.4,3873.3,0.493]
[1753951827198,6.26051115,3873.4,3873.3,0.001]
[1753951828184,6.50192276,3873.4,3873.3,0.001]
[1753951829459,6.50192276,3873.4,3873.3,0.493]
[1753951829783,11.6206984,3873.4,3873.3,0.001]
[1753951830281,11.75353237,3873.4,3873.3,0.001]
[1753951830590,11.75353237,3873.4,3873.3,1e-08]
[1753951830591,42.65322537,3873.4,3873.3,1e-08]
[1753951830991,5.58197779,3873.0,3872.9,0.48300001]
[1753951831289,2.58224448,3872.6,3872.5,0.4658]
[1753951831584,2.71104448,3872.6,3872.5,0.001]
[1753951831958,2.95247715,3872.6,3872.5,0.001]
[1753951832400,2.95245879,3872.6,3872.5,0.001]
[1753951832774,2.95245879,3872.6,3872.5,0.4658]
[1753951832973,2.95245879,3872.6,3872.5,0.9578]